bitfinex-derivatives/quotes_SOLF0:USTF0_20260127
["timestamp","ask_amount","ask_price","bid_price","bid_amount"]
[1769524650962,7.2861,123.69,123.6,291.94]
[1769524650963,7.2854,123.71,123.63,69.85666035]
[1769524651163,66.54650252,123.72,123.63,69.85666035]
[1769524651960,7.2855,123.7,123.63,69.85666035]
[1769524652657,7.2861,123.69,123.63,62.56716035]
[1769524652851,66.54650252,123.72,123.63,62.56716035]
[1769524653254,7.2855,123.7,123.63,69.85666035]
[1769524654265,113.3087,123.73,123.63,69.85666035]
[1769524654266,7.284,123.73,123.66,69.85476035]
[1769524654466,62.18017523,123.74,123.66,62.56716035]
[1769524654668,62.18017523,123.72,123.63,62.56716035]
[1769524655171,7.2855,123.7,123.63,69.85666035]
[1769524655372,62.18017523,123.71,123.63,62.56716035]
[1769524656369,7.2866,123.68,123.63,62.56716035]
[1769524656566,7.2866,123.68,123.6,62.56716035]
[1769524657063,7.2859,123.7,123.62,7.2901]
[1769524657363,7.2859,123.7,123.62,69.85726035]
[1769524658271,7.2859,123.7,123.63,69.85676035]
[1769524659560,62.18017523,123.7,123.6,62.56716035]
[1769524660059,66.54650252,123.7,123.6,62.56716035]
[1769524660769,7.2872,123.68,123.62,7.2901]
[1769524661171,7.2872,123.68,123.6,62.56716035]
[1769524661371,7.2872,123.68,123.61,7.2907]
[1769524661568,7.2872,123.68,123.61,69.85786035]
[1769524661970,7.2872,123.68,123.62,7.29]
[1769524662572,7.2872,123.68,123.62,69.85716035]
[1769524663078,7.2873,123.67,123.6,69.85786035]
[1769524663474,62.18017523,123.68,123.6,62.56716035]
[1769524663676,62.18017523,123.68,123.59,322.96]
[1769524664075,69.46867523,123.65,123.59,322.96]
[1769524664276,69.46867523,123.65,123.57,68.57719786]
[1769524664471,62.18017523,123.65,123.57,68.57719786]
[1769524664977,7.2891,123.64,123.57,68.57719786]
[1769524665178,62.18017523,123.65,123.57,68.57719786]
[1769524665475,62.18017523,123.62,123.57,3.751e-05]
[1769524666274,62.18017523,123.65,123.57,62.56719786]
[1769524666470,4.36632729,123.66,123.57,62.56719786]
[1769524666684,175.52317523,123.69,123.59,62.56716035]
[1769524666881,62.18017523,123.67,123.59,62.56716035]
[1769524667081,69.46867523,123.65,123.57,3.751e-05]
[1769524667279,69.46867523,123.65,123.57,62.56719786]
[1769524667781,7.2877,123.67,123.57,62.56719786]
[1769524667984,62.18017523,123.68,123.59,62.56716035]
[1769524668182,62.18017523,123.68,123.59,69.85856035]
[1769524668781,7.2871,123.68,123.6,69.85846035]
[1769524669385,69.46727523,123.68,123.6,69.85846035]
[1769524669974,69.46727523,123.68,123.61,7.2907]
[1769524671186,62.18017523,123.67,123.57,69.94546102]
[1769524671381,62.18017523,123.66,123.57,62.56719786]
[1769524671686,7.2897,123.63,123.57,62.56719786]
[1769524671893,62.18017523,123.64,123.57,3.751e-05]
[1769524672186,7.2889,123.65,123.58,7.2924]
[1769524672692,62.18017523,123.65,123.57,62.56719786]
[1769524673999,62.18017523,123.63,123.57,3.751e-05]
[1769524674182,62.18017523,123.62,123.57,3.751e-05]
[1769524674986,7.2916,123.6,123.52,62.19873701]
[1769524675394,62.48263889,123.64,123.55,62.19873701]
[1769524675591,7.2899,123.63,123.56,7.2936]
[1769524675786,7.2899,123.63,123.55,62.19873701]
[1769524676190,66.84896618,123.67,123.57,62.19873701]
[1769524677199,7.2885,123.65,123.58,7.2924]
[1769524677587,7.2885,123.65,123.58,69.49113701]
[1769524680096,62.48263889,123.64,123.56,7.2933]
[1769524680502,62.48263889,123.64,123.52,9.84683292]
[1769524680503,62.48263889,123.62,123.52,69.57700017]
[1769524680697,117.78033187,123.62,123.52,62.19873701]
[1769524680896,175.93383889,123.57,123.49,62.19873701]
[1769524681100,62.48263889,123.57,123.49,62.19873701]
[1769524681296,62.48263889,123.57,123.49,69.49643701]
[1769524681495,62.48263889,123.6,123.51,62.19873701]
[1769524682106,62.48263889,123.58,123.48,62.19873701]
[1769524682296,62.48263889,123.57,123.48,62.19873701]
[1769524682491,4.36993187,123.59,123.49,62.19873701]
[1769524682692,62.48263889,123.6,123.5,62.19873701]
[1769524682897,62.48263889,123.6,123.51,62.19873701]
[1769524683102,4.36993187,123.62,123.53,69.49403701]
[1769524683301,62.48263889,123.61,123.53,62.19873701]
[1769524683502,7.2915,123.6,123.53,62.19873701]
[1769524684703,7.2922,123.59,123.5,69.49563701]
[1769524685210,7.2926,123.58,123.5,69.49563701]
[1769524685699,62.48263889,123.58,123.5,62.19873701]
[1769524686006,7.2932,123.57,123.5,62.19873701]
[1769524686900,7.2932,123.57,123.45,117.92883187]
[1769524686901,62.48263889,123.54,123.44,62.19873701]
[1769524687105,62.48263889,123.54,123.45,62.19873701]
[1769524687298,7.2957,123.53,123.45,62.19873701]
[1769524687503,62.48263889,123.5,123.39,62.19873701]
[1769524687711,62.48263889,123.5,123.41,62.19873701]
[1769524688009,62.48263889,123.5,123.41,69.50093701]
[1769524688305,4.36993187,123.55,123.44,62.19873701]
[1769524688504,66.85257076,123.55,123.46,62.19873701]
[1769524689100,62.48263889,123.55,123.46,62.19873701]
[1769524689298,323.16,123.57,123.47,62.19873701]
[1769524690006,506.38623889,123.57,123.47,62.19873701]
[1769524690309,175.94483889,123.56,123.47,62.19873701]
[1769524690510,62.48263889,123.56,123.47,62.19873701]
[1769524691405,62.48263889,123.55,123.47,62.19873701]
[1769524692005,330.4532,123.57,123.47,62.19873701]
[1769524692599,7.294,123.56,123.47,62.19873701]
[1769524692902,385.64263889,123.57,123.47,62.19873701]
[1769524693303,62.48263889,123.55,123.47,62.19873701]
[1769524693702,499.09473889,123.57,123.47,62.19873701]
[1769524693901,69.77593889,123.57,123.47,62.19873701]
[1769524694101,62.48263889,123.6,123.5,62.19873701]
[1769524694913,113.4311,123.59,123.5,62.19873701]
[1769524695107,175.91373889,123.59,123.5,62.19873701]
[1769524695303,62.48263889,123.58,123.5,62.19873701]
[1769524696001,499.16013889,123.61,123.5,62.19873701]
[1769524696312,62.48263889,123.61,123.5,62.19873701]
[1769524696512,62.48263889,123.61,123.51,62.19873701]
[1769524696909,69.77373889,123.61,123.52,69.49443701]
[1769524697110,62.48263889,123.58,123.49,62.19873701]
[1769524698009,7.2939,123.56,123.49,62.19873701]
[1769524698204,180.29557076,123.58,123.49,62.19873701]
[1769524698205,66.85257076,123.58,123.49,62.19873701]
[1769524699116,62.48263889,123.56,123.46,62.19873701]
[1769524699812,7.295,123.54,123.46,69.49823701]
[1769524700012,62.48263889,123.53,123.43,62.19873701]
[1769524700315,62.48263889,123.53,123.42,113.581]
[1769524700316,7.2964,123.52,123.44,69.49903701]
[1769524700621,62.48263889,123.55,123.45,62.19873701]
[1769524701214,7.2956,123.53,123.45,62.19873701]
[1769524701714,7.2956,123.53,123.46,7.2995]
[1769524701919,69.77733889,123.55,123.46,62.19873701]
[1769524702119,62.48263889,123.55,123.46,62.19873701]
[1769524702716,68.64185668,123.54,123.42,62.21546141]
[1769524702918,68.64185668,123.51,123.42,62.21546141]
[1769524703308,75.93885668,123.51,123.42,69.51726141]
[1769524703519,68.64185668,123.51,123.42,62.21546141]
[1769524703720,4.36993187,123.53,123.43,62.21546141]
[1769524704109,68.64185668,123.54,123.44,62.21546141]
[1769524704715,68.64185668,123.54,123.45,66.0669249]
[1769524704716,182.12115668,123.54,123.45,66.0669249]
[1769524704915,68.32888354,123.53,123.45,66.0669249]
[1769524705312,75.62458354,123.53,123.45,66.0669249]
[1769524705918,7.2947,123.55,123.45,66.0669249]
[1769524706417,68.32888354,123.54,123.45,66.0669249]
[1769524707226,181.80798354,123.54,123.45,66.0669249]
[1769524707621,68.32888354,123.51,123.42,66.0669249]
[1769524708019,75.62578354,123.51,123.42,73.3687249]
[1769524708325,68.32888354,123.51,123.42,66.0669249]
[1769524708519,68.32888354,123.51,123.44,7.3005]
[1769524708719,68.32888354,123.54,123.44,66.0669249]
[1769524708915,68.32888354,123.53,123.44,66.0669249]
[1769524709311,181.80208354,123.55,123.44,66.0669249]
[1769524709521,68.32888354,123.55,123.44,66.0669249]
[1769524709715,68.32888354,123.55,123.45,66.0669249]
[1769524709911,68.32888354,123.55,123.48,7.2982]
[1769524710315,68.32888354,123.55,123.46,66.0669249]
[1769524710516,181.79878354,123.55,123.46,66.0669249]
[1769524710713,68.32888354,123.54,123.43,66.0669249]
[1769524710916,68.32888354,123.54,123.44,66.0669249]
[1769524711516,75.62428354,123.54,123.46,66.0669249]
[1769524711713,68.32888354,123.55,123.44,66.0669249]
[1769524711919,68.32888354,123.55,123.45,66.0669249]
[1769524712130,75.62348354,123.55,123.46,66.0669249]
[1769524712825,7.295,123.54,123.46,73.3660249]
[1769524716021,7.2955,123.53,123.46,73.3660249]
[1769524716327,68.32888354,123.53,123.44,7.3004]
[1769524716727,7.2967,123.51,123.44,73.3673249]
[1769524717026,68.32888354,123.53,123.44,73.3673249]
[1769524717027,68.32888354,123.53,123.45,7.3001]
[1769524717328,7.2961,123.52,123.45,7.3001]
[1769524717529,7.2961,123.52,123.44,66.0669249]
[1769524717825,68.32888354,123.53,123.44,66.0669249]
[1769524718128,68.32888354,123.53,123.45,7.3001]
[1769524718628,7.2962,123.52,123.45,73.3670249]
[1769524720331,75.62448354,123.53,123.46,7.2995]
[1769524720527,68.32888354,123.53,123.46,73.3664249]
[1769524720730,68.32888354,123.53,123.43,73.54570885]
[1769524721027,7.2961,123.52,123.45,7.3002]
[1769524721226,68.32888354,123.53,123.43,73.54570885]
[1769524721533,7.2974,123.5,123.43,73.54570885]
[1769524721739,68.32888354,123.51,123.43,66.0669249]
[1769524722227,7.2979,123.49,123.43,66.0669249]
[1769524722629,181.84318354,123.5,123.42,7.47878395]
[1769524722928,72.69881541,123.53,123.42,73.54570885]
[1769524723128,72.69881541,123.53,123.44,73.54570885]
[1769524723731,79.99431541,123.53,123.46,73.3663249]
[1769524724435,75.62438354,123.53,123.46,73.3663249]
[1769524724737,7.2961,123.52,123.46,66.0669249]
[1769524724921,68.32888354,123.53,123.46,66.0669249]
[1769524726038,7.2967,123.51,123.46,66.0669249]
[1769524727535,68.32888354,123.49,123.43,7.53767573]
[1769524727838,68.32888354,123.49,123.41,83.21585782]
[1769524728041,7.2985,123.48,123.42,7.302]
[1769524728240,4.36993187,123.5,123.42,73.3689249]
[1769524728536,68.32888354,123.52,123.42,75.91375782]
[1769524728842,7.297,123.51,123.43,66.0669249]
[1769524729836,68.32888354,123.5,123.43,66.0669249]
[1769524730735,181.82878354,123.52,123.43,66.0669249]
[1769524730942,7.2978,123.5,123.43,66.0669249]
[1769524731539,68.32888354,123.52,123.43,66.0669249]
[1769524731932,7.2992,123.47,123.41,75.91375782]
[1769524732240,68.32888354,123.49,123.41,75.91375782]
[1769524732942,7.2984,123.48,123.41,83.21625782]
[1769524733345,7.2984,123.48,123.42,66.0669249]
[1769524733744,7.2984,123.48,123.41,83.21625782]
[1769524734539,7.299,123.47,123.41,66.0669249]
[1769524735239,7.2999,123.46,123.38,63.24644528]
[1769524735542,64.19435837,123.46,123.38,63.24644528]
[1769524735740,68.56429024,123.45,123.35,63.24644528]
[1769524736141,75.86499024,123.45,123.36,63.24644528]
[1769524736341,71.49505837,123.45,123.36,63.24644528]
[1769524736948,64.19435837,123.45,123.38,63.24644528]
[1769524737540,7.2994,123.47,123.38,70.55054528]
[1769524737748,7.2994,123.47,123.38,63.24644528]
[1769524738247,68.57874,123.48,123.4,63.24644528]
[1769524738545,64.19435837,123.48,123.4,63.24644528]
[1769524738746,7.2992,123.47,123.4,63.24644528]
[1769524739143,64.19435837,123.48,123.4,63.24644528]
[1769524739943,71.49325837,123.48,123.4,63.24644528]
[1769524740143,64.19435837,123.48,123.4,63.24644528]
[1769524740338,7.2986,123.48,123.4,63.24644528]
[1769524740543,113.5157,123.5,123.4,63.24644528]
[1769524740544,64.19435837,123.49,123.4,63.24644528]
[1769524740739,64.19435837,123.49,123.4,70.54954528]
[1769524741149,64.19435837,123.49,123.4,63.24644528]
[1769524741745,7.2992,123.47,123.4,63.24644528]
[1769524742342,64.19435837,123.46,123.37,70.55084528]
[1769524742543,177.74775837,123.46,123.37,63.24644528]
[1769524742952,64.19435837,123.45,123.37,63.24644528]
[1769524743349,7.3009,123.44,123.37,63.24644528]
[1769524743550,7.3009,123.44,123.37,70.55134528]
[1769524743755,117.91898163,123.48,123.37,63.24644528]
[1769524743756,182.11334,123.48,123.37,63.24644528]
[1769524744150,7.3,123.46,123.39,7.3037]
[1769524744457,323.52,123.5,123.4,63.24644528]
[1769524744652,7.2987,123.48,123.4,63.24644528]
[1769524745047,64.19435837,123.49,123.4,63.24644528]
[1769524745552,7.2991,123.47,123.4,63.24644528]
[1769524745750,64.19435837,123.47,123.36,63.24644528]
[1769524746060,64.19435837,123.44,123.36,63.24644528]
[1769524746852,177.73855837,123.47,123.36,63.24644528]
[1769524747055,64.19435837,123.46,123.36,63.24644528]
[1769524747742,64.19435837,123.46,123.38,63.24644528]
[1769524748154,501.25955837,123.49,123.38,63.24644528]
[1769524748354,7.2991,123.47,123.4,7.3031]
[1769524748855,7.2991,123.47,123.4,70.54954528]
[1769524749161,7.2997,123.46,123.4,63.24644528]
[1769524750055,71.49315837,123.48,123.4,63.24644528]
[1769524750355,71.49315837,123.48,123.41,7.3024]
[1769524750556,7.2979,123.49,123.41,63.24644528]
[1769524751250,7.2985,123.48,123.41,63.24644528]
[1769524751452,64.19435837,123.48,123.41,63.24644528]
[1769524752257,64.19435837,123.48,123.41,70.54884528]
[1769524752258,7.2989,123.48,123.41,70.54884528]
[1769524753958,64.19435837,123.47,123.39,7.3033]
[1769524754764,7.2996,123.46,123.39,70.54974528]
[1769524755054,182.09654,123.5,123.4,70.54954528]
[1769524755257,7.2984,123.48,123.4,63.24644528]
[1769524755852,7.2991,123.47,123.4,70.54944528]
[1769524756161,64.19435837,123.45,123.37,63.24644528]
[1769524757459,177.73645837,123.47,123.37,63.24644528]
[1769524757668,7.2958,123.53,123.44,63.24644528]
[1769524758155,184.96515837,123.55,123.44,63.24644528]
[1769524758359,184.95665837,123.55,123.45,63.24644528]
[1769524758964,71.48965837,123.54,123.45,63.24644528]
[1769524759151,64.19435837,123.54,123.45,63.24644528]
[1769524759653,11.67828163,123.56,123.45,63.24644528]
[1769524759864,387.75435837,123.57,123.46,63.24644528]
[1769524760263,71.48845837,123.56,123.46,63.24644528]
[1769524760956,64.19435837,123.56,123.48,63.24644528]
[1769524763768,71.48835837,123.56,123.48,63.24644528]
[1769524764668,68.15538269,123.59,123.49,64.92556428]
[1769524764865,68.15538269,123.59,123.5,64.92556428]
[1769524765168,68.15538269,123.59,123.51,7.2964]
[1769524765366,68.15538269,123.59,123.51,72.22196428]
[1769524765564,75.44638269,123.61,123.51,72.22196428]
[1769524766063,7.2916,123.6,123.51,72.22196428]
[1769524766262,68.15538269,123.6,123.52,72.22136428]
[1769524767857,75.44718269,123.6,123.52,64.92556428]
[1769524768458,68.15538269,123.6,123.52,64.92556428]
[1769524768663,7.2906,123.62,123.52,64.92556428]
[1769524769065,75.44598269,123.62,123.52,64.92556428]
[1769524769870,75.44598269,123.62,123.53,7.2953]
[1769524770069,75.44598269,123.62,123.53,72.22086428]
[1769524770466,7.2906,123.62,123.53,72.22086428]
[1769524770774,75.44478269,123.64,123.55,64.92556428]
[1769524772373,75.44508269,123.63,123.55,64.92556428]
[1769524772878,75.44578269,123.62,123.55,64.92556428]
[1769524775179,7.2895,123.64,123.56,72.21906428]
[1769524775765,68.15538269,123.65,123.53,113.4819]
[1769524775766,68.15538269,123.65,123.57,64.92556428]
[1769524776477,7.2876,123.67,123.59,64.92556428]
[1769524776877,68.15538269,123.67,123.57,64.92556428]
[1769524777075,75.44308269,123.67,123.58,64.92556428]
[1769524778376,7.2877,123.67,123.6,72.21666428]
[1769524779181,7.288,123.66,123.6,64.92556428]
[1769524779578,68.15538269,123.7,123.62,64.92556428]
[1769524779969,68.15538269,123.7,123.62,72.21556428]
[1769524780271,7.2861,123.69,123.62,72.21556428]
[1769524781276,75.44208269,123.68,123.59,64.92556428]
[1769524782877,75.44208269,123.68,123.61,7.2907]
[1769524783873,7.2867,123.68,123.62,7.2901]
[1769524784075,11.67028163,123.7,123.62,7.2901]
[1769524784273,79.82566432,123.7,123.62,7.2901]
[1769524784474,7.2861,123.69,123.62,7.2901]
[1769524784680,75.44148269,123.69,123.62,7.2901]
[1769524784879,7.2861,123.69,123.62,72.21566428]
[1769524787082,75.44088269,123.7,123.63,7.2894]
[1769524787584,72.53976432,123.7,123.6,64.92556428]
[1769524788282,68.15538269,123.69,123.6,7.2909]
[1769524788477,68.15538269,123.69,123.58,178.35646428]
[1769524788678,68.15538269,123.69,123.59,64.92556428]
[1769524789879,68.15538269,123.68,123.61,7.2907]
[1769524790181,68.15538269,123.68,123.59,64.92556428]
[1769524790975,7.2873,123.67,123.6,7.2913]
[1769524791170,68.15538269,123.67,123.59,64.92556428]
[1769524791377,68.15538269,123.67,123.57,323.2]
[1769524791378,68.15538269,123.66,123.56,64.92556428]
[1769524792679,7.2896,123.64,123.57,7.2925]
[1769524793281,75.44548269,123.63,123.56,72.21926428]
[1769524797388,75.44548269,123.63,123.57,7.2931]
[1769524797588,68.15538269,123.63,123.57,7.2931]
[1769524798489,68.15538269,123.63,123.58,7.2924]
[1769524799082,7.2885,123.65,123.59,7.2919]
[1769524799284,65.72410351,123.65,123.56,64.92556428]
[1769524800079,7.2896,123.63,123.57,7.2931]
[1769524800491,65.72410351,123.65,123.56,64.92556428]
[1769524801790,7.289,123.64,123.58,7.2922]
[1769524801987,73.01310351,123.64,123.58,7.2922]
[1769524802386,73.01370351,123.63,123.56,72.21866428]
[1769524802695,65.72410351,123.63,123.56,64.92556428]
[1769524803187,65.72410351,123.63,123.58,7.2924]
[1769524803386,4.37114259,123.66,123.57,67.61604311]
[1769524803387,70.0952461,123.66,123.57,67.61604311]
[1769524803695,7.2902,123.62,123.54,74.91034311]
[1769524803991,65.72410351,123.62,123.54,67.61604311]
[1769524804384,65.72410351,123.65,123.55,67.61604311]
[1769524805196,65.72410351,123.63,123.56,7.2937]
[1769524806395,65.72410351,123.63,123.57,74.90864311]
[1769524806586,70.0952461,123.66,123.57,67.61604311]
[1769524807293,73.01250351,123.65,123.58,7.2925]
[1769524807495,73.01250351,123.65,123.57,67.61604311]
[1769524808488,65.72410351,123.68,123.59,67.61604311]
[1769524809491,65.72410351,123.68,123.61,7.2906]
[1769524809692,65.72410351,123.68,123.59,67.61604311]
[1769524810195,73.01100351,123.68,123.62,7.2901]
[1769524810891,226.6594,123.71,123.62,67.61604311]
[1769524810892,7.2859,123.7,123.62,67.61604311]
[1769524811396,65.72410351,123.7,123.64,7.2889]
[1769524811896,65.72410351,123.73,123.67,7.2871]
[1769524812291,65.72410351,123.76,123.67,67.61604311]
[1769524812597,7.2826,123.75,123.68,7.2866]
[1769524812792,65.72410351,123.75,123.67,67.61604311]
[1769524813094,65.72410351,123.75,123.67,74.90314311]
[1769524813796,7.2832,123.74,123.67,74.90314311]
[1769524814299,73.00730351,123.74,123.67,74.90314311]
[1769524815697,65.72410351,123.74,123.67,74.90314311]
[1769524815992,65.72410351,123.74,123.68,7.2864]
[1769524816295,65.72410351,123.74,123.67,67.61604311]
[1769524816885,73.00730351,123.74,123.67,74.90314311]
[1769524817498,65.72410351,123.74,123.67,74.90314311]
[1769524817701,65.72410351,123.74,123.65,7.288]
[1769524818000,65.72410351,123.74,123.65,74.90404311]
[1769524818491,73.00800351,123.73,123.66,7.2878]
[1769524819303,65.72410351,123.73,123.67,7.2871]
[1769524820402,65.72410351,123.76,123.68,74.90244311]
[1769524821491,65.72410351,123.76,123.69,74.90194311]
[1769524821697,65.72410351,123.78,123.7,67.61604311]
[1769524821900,1.40660051,123.8,123.7,67.61604311]
[1769524821901,67.13070402,123.8,123.7,67.61604311]
[1769524822204,65.72410351,123.8,123.71,67.61604311]
[1769524822389,65.72410351,123.8,123.69,322.98]
[1769524822703,68.19437677,123.77,123.68,66.68315594]
[1769524823802,75.47617677,123.77,123.68,66.68315594]
[1769524824105,68.19437677,123.77,123.68,66.68315594]
[1769524824901,63.24328035,123.75,123.66,65.09481114]
[1769524825294,67.61442294,123.75,123.66,65.09481114]
[1769524825688,63.24328035,123.75,123.66,72.38211114]
[1769524826501,70.52708035,123.73,123.66,65.09481114]
[1769524826699,67.61442294,123.73,123.6,178.50801114]
[1769524826901,63.24328035,123.69,123.6,65.09481114]
[1769524827099,70.52958035,123.69,123.6,65.09481114]
[1769524827594,70.52958035,123.69,123.6,72.38591114]
[1769524828203,70.52958035,123.69,123.58,113.4374]
[1769524828204,63.24328035,123.69,123.61,72.38531114]
[1769524830501,63.24328035,123.69,123.62,7.29]
[1769524830704,70.52788035,123.72,123.63,65.09481114]
[1769524831806,63.24328035,123.71,123.59,113.427]
[1769524832007,63.24328035,123.69,123.6,65.09481114]
[1769524832310,63.24328035,123.68,123.6,65.09481114]
[1769524833209,70.53008035,123.68,123.6,72.38601114]
[1769524834207,11.65694259,123.7,123.61,72.38541114]
[1769524834508,74.90022294,123.7,123.61,72.38541114]
[1769524834908,74.90022294,123.7,123.62,7.29]
[1769524835210,67.61442294,123.7,123.61,178.50391114]
[1769524835403,67.61442294,123.7,123.62,65.09481114]
[1769524836409,67.61442294,123.7,123.63,7.2895]
[1769524836610,70.52798035,123.72,123.63,65.09481114]
[1769524837815,63.24328035,123.75,123.65,65.09481114]
[1769524838104,117.63334259,123.78,123.69,65.09481114]
[1769524838105,63.24328035,123.78,123.69,65.09481114]
[1769524838306,8.68664366,123.8,123.71,65.09481114]
[1769524838501,1.40654366,123.8,123.71,178.41201114]
[1769524838703,63.24328035,123.84,123.77,7.2812]
[1769524838907,63.24328035,123.84,123.75,65.09481114]
[1769524839405,70.52068035,123.84,123.76,7.2817]
[1769524839809,70.52068035,123.84,123.75,65.09481114]
[1769524840008,70.52068035,123.84,123.75,72.37711114]
[1769524841309,70.52068035,123.84,123.73,65.09481114]
[1769524841310,70.52128035,123.83,123.73,65.09481114]
[1769524841613,114.60164699,123.85,123.75,65.09481114]
[1769524841614,64.64922734,123.85,123.75,65.09481114]
[1769524841808,70.52068035,123.84,123.76,7.2816]
[1769524842208,1.40594699,123.85,123.76,7.2816]
[1769524842209,67.61442294,123.87,123.76,65.09481114]
[1769524842613,76.29609955,123.87,123.78,72.37531114]
[1769524842814,63.24328035,123.87,123.79,65.09481114]
[1769524843116,4.37114259,123.9,123.79,65.09481114]
[1769524843117,70.51838035,123.88,123.79,65.09481114]
[1769524844014,70.51838035,123.88,123.79,72.37461114]
[1769524844423,63.24328035,123.88,123.79,65.09481114]
[1769524844714,63.24328035,123.88,123.8,7.2793]
[1769524845718,63.24328035,123.88,123.8,72.37411114]
[1769524846109,63.24328035,123.88,123.8,65.09481114]
[1769524846607,7.2756,123.87,123.8,65.09481114]
[1769524846810,7.2756,123.87,123.76,113.2726]
[1769524846811,63.24328035,123.87,123.76,65.09481114]
[1769524847114,63.24328035,123.87,123.77,65.09481114]
[1769524847918,70.51898035,123.87,123.78,72.37511114]
[1769524848913,63.24328035,123.86,123.78,65.09481114]
[1769524849120,63.24328035,123.85,123.75,65.09481114]
[1769524849616,63.24328035,123.88,123.78,65.09481114]
[1769524850119,70.51888035,123.87,123.78,65.09481114]
[1769524850321,63.24328035,123.87,123.78,65.09481114]
[1769524851227,70.52008035,123.85,123.75,65.09481114]
[1769524851723,63.24328035,123.85,123.75,65.09481114]
[1769524852221,63.24328035,123.85,123.76,178.36211114]
[1769524852421,7.2765,123.86,123.77,65.09481114]
[1769524852620,63.24328035,123.86,123.77,65.09481114]
[1769524853319,63.24328035,123.84,123.74,65.09481114]
[1769524853623,63.24328035,123.83,123.74,65.09481114]
[1769524854424,7.2788,123.82,123.74,65.09481114]
[1769524855316,7.2777,123.84,123.75,67.37129903]
[1769524855924,64.39571549,123.86,123.77,74.65249903]
[1769524856317,64.39571549,123.86,123.77,67.37129903]
[1769524856518,64.39571549,123.86,123.78,67.37129903]
[1769524857126,71.67181549,123.86,123.79,7.28]
[1769524857524,64.39571549,123.86,123.78,67.37129903]
[1769524857719,71.67241549,123.85,123.78,67.37129903]
[1769524857920,64.39571549,123.85,123.77,7.2808]
[1769524858924,7.2774,123.84,123.77,74.65209903]
[1769524860122,7.278,123.83,123.77,67.37129903]
[1769524860322,7.278,123.83,123.75,7.2823]
[1769524860323,71.67371549,123.83,123.75,7.2823]
[1769524860626,64.39571549,123.83,123.75,67.37129903]
[1769524860828,7.2777,123.84,123.77,7.2813]
[1769524861031,64.39571549,123.86,123.77,67.37129903]
[1769524861620,64.39571549,123.85,123.74,67.37129903]
[1769524861827,64.39571549,123.84,123.74,67.37129903]
[1769524862627,64.39571549,123.82,123.74,67.37129903]
[1769524862933,64.39571549,123.82,123.68,67.37129903]
[1769524862934,68.75250782,123.79,123.68,67.37129903]
[1769524863232,7.2806,123.79,123.7,67.37129903]
[1769524864021,71.67631549,123.79,123.7,67.37129903]
[1769524864327,7.2808,123.78,123.7,67.37129903]
[1769524864630,71.67651549,123.78,123.71,7.2848]
[1769524864830,7.2816,123.77,123.7,67.37129903]
[1769524865431,7.2821,123.76,123.67,67.37129903]
[1769524865732,64.39571549,123.78,123.69,67.37129903]
[1769524866433,7.2814,123.77,123.69,67.37129903]
[1769524866728,71.67711549,123.77,123.69,67.37129903]
[1769524866924,64.39571549,123.77,123.69,67.37129903]
[1769524867731,64.39571549,123.77,123.7,7.2854]
[1769524867934,64.39571549,123.77,123.69,67.37129903]
[1769524868922,64.39571549,123.77,123.69,74.65679903]
[1769524869935,7.2819,123.76,123.69,74.65679903]
[1769524870732,71.67851549,123.75,123.68,7.2864]
[1769524871035,71.67851549,123.75,123.67,67.37129903]
[1769524871232,68.75250782,123.78,123.68,67.37129903]
[1769524871937,181.98420782,123.81,123.71,67.37129903]
[1769524872138,64.39571549,123.8,123.71,67.37129903]
[1769524872540,71.67551549,123.8,123.73,7.2837]
[1769524873237,71.67591549,123.79,123.71,67.37129903]
[1769524873738,71.67661549,123.78,123.7,7.2849]
[1769524873933,68.75250782,123.78,123.7,67.37129903]
[1769524874536,64.39571549,123.78,123.72,7.2841]
[1769524875237,64.39571549,123.78,123.7,67.37129903]
[1769524875238,76.03200782,123.81,123.73,7.2836]
[1769524875438,68.75250782,123.81,123.73,7.2836]
[1769524876433,71.67611549,123.79,123.7,67.37129903]
[1769524877436,71.67611549,123.79,123.72,7.2843]
[1769524878430,7.2808,123.78,123.72,7.2843]
[1769524878631,7.2808,123.78,123.67,113.3546]
[1769524878632,4.35679233,123.75,123.67,67.37129903]
[1769524878837,64.39571549,123.76,123.67,67.37129903]
[1769524879348,4.35679233,123.78,123.7,7.2854]
[1769524879534,68.75250782,123.78,123.7,7.2854]
[1769524880835,7.2818,123.77,123.7,74.65669903]
[1769524881238,68.75250782,123.78,123.71,7.2848]
[1769524881438,68.75250782,123.78,123.71,74.65609903]
[1769524882040,76.03330782,123.78,123.71,74.65609903]
[1769524882333,70.17356368,123.81,123.72,66.05566389]
[1769524882745,7.2802,123.79,123.72,66.05566389]
[1769524884045,7.2802,123.79,123.72,73.33986389]
[1769524884538,70.17356368,123.81,123.72,66.05566389]
[1769524884744,65.81677135,123.81,123.72,66.05566389]
[1769524885145,65.81677135,123.81,123.75,7.2824]